Workbook

Sheet Ejecucion 2025 fondo 9995
A4: Hospital General de Especialidades Mario Tolentino Dipp
A5: Año 2025
A6: Ejecución de Gasto y Aplicaciones financieras Fondo 9995
A7: En RD$
A9: DETALLE | B9: Presupuesto Modificado | C9: Presupuesto Modificado | D9: Gasto devengado
D10: Enero | E10: Febrero | F10: Marzo | G10: Abril | H10: Mayo | I10: Junio | J10: Julio | K10: Agosto | L10: Septiembre | M10: Octubre | N10: Noviembre | O10: Diciembre | P10: Total
A11: 2 - GASTOS
A12: 2.1 - REMUNERACIONES Y CONTRIBUCIONES | B12: =+B13+B14+B15+B16+B17 -> 0 | C12: =+C13+C14+C15+C16+C17 -> 0 | D12: =+D13+D14+D15+D16+D17 -> 0 | E12: 0 | F12: 0 | G12: 0 | H12: 0 | I12: 0 | J12: 0 | K12: 0 | L12: 0 | M12: 0 | N12: 0 | O12: 0 | P12: =+D12+E12+F12+G12+H12+I12+J12+K12+L12+M12+N12+O12 -> 0.00
A13: 2.1.1 - REMUNERACIONES | P13: 0.00
A14: 2.1.2 - SOBRESUELDOS | P14: 0.00
A15: 2.1.3 - DIETAS Y GASTOS DE REPRESENTACIÓN | P15: 0.00
A16: 2.1.4 - GRATIFICACIONES Y BONIFICACIONES | P16: 0.00
A17: 2.1.5 - CONTRIBUCIONES A LA SEGURIDAD SOCIAL | P17: 0.00
A18: 2.2 - CONTRATACIÓN DE SERVICIOS | B18: =+B19+B20+B21+B22+B23+B24+B25+B26+B27 -> 17,344,320.00 | C18: =+C19+C20+C21+C22+C23+C24+C25+C26+C27 -> 0 | D18: 0 | E18: 1,443,839.07 | F18: 4,259,115.08 | G18: 1,233,958.09 | H18: 0 | I18: =+I19+I20+I21+I22+I23+I24+I25+I26+I27 -> 0 | P18: 6,936,912.24
A19: 2.2.1 - SERVICIOS BÁSICOS | B19: 8,032,400.00 | E19: 110,000.00 | G19: 735,000.00 | P19: 845,000.00
A20: 2.2.2 - PUBLICIDAD, IMPRESIÓN Y ENCUADERNACIÓN | F20: 688,026 | P20: 688,026.00
A21: 2.2.3 - VIÁTICOS | P21: 0.00
A22: 2.2.4 - TRANSPORTE Y ALMACENAJE | B22: 150,000.00 | G22: 82,078.09 | P22: 82,078.09
A23: 2.2.5 - ALQUILERES Y RENTAS | B23: 124,000.00 | F23: 123,900.00 | G23: 73,500.00 | P23: 197,400.00
A24: 2.2.6 - SEGUROS | P24: 0.00
A25: 2.2.7 - SERVICIOS DE CONSERVACIÓN, REPARACIONES MENORES E INSTALACIONES TEMPORALES | B25: 3,515,320.00 | E25: 926,739.07 | F25: 3,116,652.28 | P25: 4,043,391.35
A26: 2.2.8 - OTROS SERVICIOS NO INCLUIDOS EN CONCEPTOS ANTERIORES | B26: 4,522,600.00 | E26: 407,100.00 | F26: 330,536.80 | G26: 343,380.00 | P26: 1,081,016.80
A27: 2.2.9 - OTRAS CONTRATACIONES DE SERVICIOS | B27: 1,000,000.00 | P27: 0.00
A28: 2.3 - MATERIALES Y SUMINISTROS | B28: =+B29+B30+B31+B32+B33+B34+B35+B36+B37 -> 147,495,780.00 | C28: =+C29+C30+C31+C32+C33+C34+C35+C36+C37 -> 0 | D28: 0 | E28: =+E29+E30+E31+E32+E33+E34+E35+E36+E37+E40 -> 13,841,479.97 | F28: =+F29+F30+F31+F32+F33+F34+F35+F36+F37+F40 -> 23,186,289.27 | G28: =+G29+G30+G31+G32+G33+G34+G35+G36+G37+G40 -> 8,949,956.60 | H28: =+H29+H30+H31+H32+H33+H34+H35+H36+H37+H40 -> 0 | I28: 0 | J28: 0 | K28: 0 | L28: 0 | M28: 0 | N28: 0 | O28: =+O29+O30+O31+O32+O33+O34+O35+O36+O37+O40 -> 0 | P28: 45,977,725.84
A29: 2.3.1 - ALIMENTOS Y PRODUCTOS AGROFORESTALES | B29: 26,500,000.00 | E29: 233,050.00 | F29: 3,131,869.97 | P29: 3,364,919.97
A30: 2.3.2 - TEXTILES Y VESTUARIOS | B30: 15,000.00 | E30: 13,216.00 | P30: 13,216.00
A31: 2.3.3 - PRODUCTOS DE PAPEL, CARTÓN E IMPRESOS | B31: 9,822,500.00 | E31: 1,532,820.00 | F31: 28,909.17 | P31: =+D31+E31+F31+G31+H31+I31+J31+K31+L31+M31+N31+O31 -> 1,561,729.17
A32: 2.3.4 - PRODUCTOS FARMACÉUTICOS | B32: 34,428,000.00 | E32: 5,817,913.00 | F32: 5,565,000.00 | G32: 996,408.87 | P32: =+D32+E32+F32+G32+H32+I32+J32+K32+L32+M32+N32+O32 -> 12,379,321.87
A33: 2.3.5 - PRODUCTOS DE CUERO, CAUCHO Y PLÁSTICO | B33: 3,001,200.00 | P33: 0.00
A34: 2.3.6 - PRODUCTOS DE MINERALES, METÁLICOS Y NO METÁLICOS | B34: 25,000.00 | F34: 56,029.94 | P34: 56,029.94
A35: 2.3.7 - COMBUSTIBLES, LUBRICANTES, PRODUCTOS QUÍMICOS Y CONEXOS | B35: 33,821,080.00 | E35: 1,768,001.33 | F35: 9,496,311.72 | G35: 6,261,029.42 | P35: 17,525,342.47
A36: 2.3.8 - GASTOS QUE SE ASIGNARÁN DURANTE EL EJERCICIO (ART. 32 Y 33 LEY 423-06) | P36: =+D36+E36+F36+G36+H36+I36+J36+K36+L36+M36+N36+O36 -> 0.00
A37: 2.3.9 - PRODUCTOS Y ÚTILES VARIOS | B37: 39,883,000.00 | E37: 4,476,479.64 | F37: 4,908,168.47 | G37: 1,692,518.31 | P37: =+D37+E37+F37+G37+H37+I37+J37+K37+L37+M37+N37+O37 -> 11,077,166.42
A38: 2.4 - TRANSFERENCIAS CORRIENTES | B38: =+B39+B40+B41+B42+B43+B44+B45+B45 -> 0 | C38: =+C39+C40+C41+C42+C43+C44+C45+C45 -> 0 | F38: 0 | G38: 0 | P38: =+D38+E38+F38+G38+H38+I38+J38+K38+L38+M38+N38+O38 -> 0.00
A39: 2.4.1 - TRANSFERENCIAS CORRIENTES AL SECTOR PRIVADO | P39: 0.00
A40: 2.4.2 - TRANSFERENCIAS CORRIENTES AL GOBIERNO GENERAL NACIONAL | P40: 0.00
A41: 2.4.3 - TRANSFERENCIAS CORRIENTES A GOBIERNOS GENERALES LOCALES | P41: 0.00
A42: 2.4.4 - TRANSFERENCIAS CORRIENTES A EMPRESAS PÚBLICAS NO FINANCIERAS | P42: 0.00
A43: 2.4.5 - TRANSFERENCIAS CORRIENTES A INSTITUCIONES PÚBLICAS FINANCIERAS | P43: 0.00
A44: 2.4.7 - TRANSFERENCIAS CORRIENTES AL SECTOR EXTERNO | P44: 0.00
A45: 2.4.9 - TRANSFERENCIAS CORRIENTES A OTRAS INSTITUCIONES PÚBLICAS | P45: 0.00
A46: 2.5 - TRANSFERENCIAS DE CAPITAL | P46: 0.00
A47: 2.5.1 - TRANSFERENCIAS DE CAPITAL AL SECTOR PRIVADO | P47: 0.00
A48: 2.5.2 - TRANSFERENCIAS DE CAPITAL AL GOBIERNO GENERAL NACIONAL | P48: 0.00
A49: 2.5.3 - TRANSFERENCIAS DE CAPITAL A GOBIERNOS GENERALES LOCALES | P49: 0.00
A50: 2.5.4 - TRANSFERENCIAS DE CAPITAL A EMPRESAS PÚBLICAS NO FINANCIERAS | P50: 0.00
A51: 2.5.5 - TRANSFERENCIAS DE CAPITAL A INSTITUCIONES PÚBLICAS FINANCIERAS | P51: 0.00
A52: 2.5.6 - TRANSFERENCIAS DE CAPITAL AL SECTOR EXTERNO | P52: 0.00
A53: 2.5.9 - TRANSFERENCIAS DE CAPITAL A OTRAS INSTITUCIONES PÚBLICAS | P53: 0.00
A54: 2.6 - BIENES MUEBLES, INMUEBLES E INTANGIBLES | B54: =+B55+B56+B57+B58+B59+B60+B61+B62+B63 -> 15,159,900.00 | C54: =+C55+C56+C57+C58+C59+C60+C61+C62+C63 -> 0 | D54: 0 | E54: 3,514,600.19 | F54: =+F55+F56+F57+F58+F59+F60+F61+F62+F63 -> 3,857,363.59 | G54: =+G55+G56+G57+G58+G59+G60+G61+G62+G63 -> 4,802,304.39 | H54: =+H55+H56+H57+H58+H59+H60+H61+H62+H63 -> 0 | I54: 0 | J54: 0 | K54: 0 | L54: 0 | M54: 0 | N54: 0 | O54: 0 | P54: =+D54+E54+F54+G54+H54+I54+J54+K54+L54+M54+N54+O54 -> 12,174,268.17
A55: 2.6.1 - MOBILIARIO Y EQUIPO | B55: 3,800,000.00 | E55: 1,954,482.56 | F55: 551,271.22 | P55: 2,505,753.78
A56: 2.6.2 - MOBILIARIO Y EQUIPO EDUCACIONAL Y RECREATIVO | P56: 0.00
A57: 2.6.3 - EQUIPO E INSTRUMENTAL, CIENTÍFICO Y LABORATORIO | B57: 10,306,900.00 | E57: 1,560,117.63 | F57: 2,119,405.31 | G57: 4,690,794.39 | P57: 8,370,317.33
A58: 2.6.4 - VEHÍCULOS Y EQUIPO DE TRANSPORTE, TRACCIÓN Y ELEVACIÓN | B58: 493,000.00 | F58: 492,502.50 | P58: 492,502.50
A59: 2.6.5 - MAQUINARIA, OTROS EQUIPOS Y HERRAMIENTAS | B59: 560,000.00 | F59: 694,184.56 | P59: 694,184.56
A60: 2.6.6 - EQUIPOS DE DEFENSA Y SEGURIDAD | G60: 111,510.00 | P60: 111,510.00
A61: 2.6.7 - ACTIVOS BIÓLOGICOS CULTIVABLES | P61: 0.00
A62: 2.6.8 - BIENES INTANGIBLES | P62: 0.00
A63: 2.6.9 - EDIFICIOS, ESTRUCTURAS, TIERRAS, TERRENOS Y OBJETOS DE VALOR | P63: 0.00
A64: 2.7 - OBRAS | B64: =+B65+B66+B67+B68 -> 0 | C64: =+C65+C66+C67+C68 -> 0 | D64: 0 | E64: 0 | F64: 0 | G64: 0 | P64: 0.00
A65: 2.7.1 - OBRAS EN EDIFICACIONES | P65: 0.00
A66: 2.7.2 - INFRAESTRUCTURA | P66: 0.00
A67: 2.7.3 - CONSTRUCCIONES EN BIENES CONCESIONADOS | P67: 0.00
A68: 2.7.4 - GASTOS QUE SE ASIGNARÁN DURANTE EL EJERCICIO PARA INVERSIÓN (ART. 32 Y 33 LEY 423-06) | P68: 0.00
A69: 2.8 - ADQUISICION DE ACTIVOS FINANCIEROS CON FINES DE POLÍTICA | P69: 0.00
A70: 2.8.1 - CONCESIÓN DE PRESTAMOS | P70: 0.00
A71: 2.8.2 - ADQUISICIÓN DE TÍTULOS VALORES REPRESENTATIVOS DE DEUDA | P71: 0.00
A72: 2.9 - GASTOS FINANCIEROS | P72: =+D72+E72+F72+G72+H72+I72+J72+K72+L72+M72+N72+O72 -> 0.00
A73: 2.9.1 - INTERESES DE LA DEUDA PÚBLICA INTERNA | P73: =+D73+E73+F73+G73+H73+I73+J73+K73+L73+M73+N73+O73 -> 0.00
A74: 2.9.2 - INTERESES DE LA DEUDA PUBLICA EXTERNA | P74: 0.00
A75: 2.9.4 - COMISIONES Y OTROS GASTOS BANCARIOS DE LA DEUDA PÚBLICA | P75: 0.00
A76: 4 - APLICACIONES FINANCIERAS | P76: =+D76+E76+F76+G76+H76+I76+J76+K76+L76+M76+N76+O76 -> 0.00
A77: 4.1 - INCREMENTO DE ACTIVOS FINANCIEROS | P77: 0.00
A78: 4.1.1 - INCREMENTO DE ACTIVOS FINANCIEROS CORRIENTES | P78: 0.00
A79: 4.1.2 - INCREMENTO DE ACTIVOS FINANCIEROS NO CORRIENTES | P79: 0.00
A80: 4.2 - DISMINUCIÓN DE PASIVOS | P80: 0.00
A81: 4.2.1 - DISMINUCIÓN DE PASIVOS CORRIENTES | P81: 0.00
A82: 4.2.2 - DISMINUCIÓN DE PASIVOS NO CORRIENTES | P82: 0.00
A83: 4.3 - DISMINUCIÓN DE FONDOS DE TERCEROS | I83: 0 | J83: 0 | K83: 0 | M83: 0 | N83: 0 | O83: 0 | P83: 0.00
A84: 4.3.5 - DISMINUCIÓN DEPÓSITOS FONDOS DE TERCEROS | I84: 0 | J84: 0 | K84: 0 | N84: 0 | O84: 0 | P84: 0.00
A85: Total general | B85: =+B12+B18+B28+B38+B54+B64 -> 180,000,000.0 | C85: =+C12+C18+C28+C38+C54+C64 -> 0 | D85: =+D12+D18+D28+D38+D54+D64 -> 0 | E85: 18,799,919.2 | F85: =+F12+F18+F28+F38+F54+F64 -> 31,302,767.9 | G85: 14,986,219.1 | H85: 0 | I85: 0 | J85: 0 | K85: 0 | L85: 0 | M85: 0 | N85: 0 | O85: 0 | P85: =+D85+E85+F85+G85+H85+I85+J85+K85+L85+M85+N85+O85 -> 65,088,906.3
A95: Preparado por: | E95: Revisado Por: | J95: Autorizado por:
A96: Yadira Garcia | E96: Kelvin Segura | J96: Miguel A. Guzman
A97: Analista Financiero | E97: Coordinador Admistrativo-Financiero | J97: Director General
